Cogmind - Beta 17 @@@ ROGUE MODE // 2026.06.23 @ 08:39:39 Player: Akl Result: Destroyed by G-47 Trooper with Particle Gun Performance ------------- Evolutions (2) 1000 Regions Visited (3) 600 Robots Destroyed (35) 175 Value Destroyed (1108) 1108 Prototype IDs (0) 0 Alien Tech Used (0) 0 Bonus (0) 0 TOTAL SCORE: 2883 Bonus ------- None Cogmind --------- Core Integrity 0/550 Matter 176/300 Energy 100/100 System Corruption 0% Temperature Cool (9) Movement Core (200) Ox3 Location -8/Materials Parts ------- > --- POWER (2) -------- (None) > --- PROPULSION (2) --- (None) > --- UTILITY (3) ------ Medium Storage Unit Visual Processing Unit > --- WEAPON (4) ------- Flail > --- INVENTORY (10) --- Reaction Control System Utility Shielding Peak State ------------ > --- POWER ------------ Ion Engine Light Ion Engine > --- PROPULSION ------- Aluminum Leg Aluminum Leg > --- UTILITY ---------- Medium Storage Unit Visual Processing Unit Improved Terrain Scanner > --- WEAPON ----------- Small Laser Pulse Rifle Pulse Rifle Pulse Rifle > --- INVENTORY -------- Light Ion Engine Aluminum Leg Aluminum Leg Reaction Control System Utility Shielding [Rating: 20] Favorites ----------- Power Ion Engine Engine Ion Engine Propulsion Aluminum Leg Leg Aluminum Leg Utility Medium Storage Unit Device Improved Terrain Scanner Storage Medium Storage Unit Processor Visual Processing Unit Protection Weapon Shielding Weapon Small Laser Energy Gun Small Laser Ballistic Gun Light Assault Rifle Launcher Grenade Launcher Impact Weapon Flail Build | -11 -10 -9 -8 ------- Run | Yrd Mat Mat Mat Slots Evolved 4 | . . 2 2 Power 1 | . . . 1 Propulsion . | . . . . Utility 1 | . . 1 . Weapon 2 | . . 1 1 Parts Attached 39 | 6 12 13 8 Power 6 | 1 2 1 2 Engine 6 | 1 2 1 2 Core . | . . . . Reactor . | . . . . Propulsion 13 | 2 5 4 2 Treads . | . . . . Leg 13 | 2 5 4 2 Wheel . | . . . . Hover . | . . . . Flight . | . . . . Utility 6 | 1 2 3 . Device 1 | . . 1 . Storage 2 | 1 1 . . Processor 1 | . . 1 . Hackware . | . . . . Protection 2 | . 1 1 . Artifact . | . . . . Weapon 14 | 2 3 5 4 Energy Gun 10 | 2 2 3 3 Energy Cannon . | . . . . Ballistic Gun 1 | . 1 . . Ballistic Cannon . | . . . . Launcher 2 | . . 2 . Special Weapon . | . . . . Impact Weapon 1 | . . . 1 Slashing Weapon . | . . . . Piercing Weapon . | . . . . Special Melee Weapon . | . . . . Unidentified Prototypes . | . . . . Parts Lost 22 | . 2 6 14 Power 4 | . . 1 3 Propulsion 4 | . . . 4 Utility 3 | . 1 1 1 Weapon 11 | . 1 4 6 Highest Loss Streak 12 | . 1 2 12 To Critical Strikes 1 | . . . 1 Average Backups 4 | 1 4 6 4 Power 1 | . 1 2 . Propulsion 1 | . 1 2 . Utility . | . . 1 2 Weapon . | . . 1 . Tool/Special . | . . . . Unused Backups 2 | . . . 2 Power . | . . . . Propulsion . | . . . . Utility 2 | . . . 2 Weapon . | . . . . Tool/Special . | . . . . Average Slot Usage (%) 90 | . 93 95 63 Engine 12 | . 14 10 8 Leg 23 | . 28 22 12 Device 2 | . . 4 4 Storage 12 | . 14 11 9 Processor 5 | . . 10 9 Protection 5 | . 8 4 . Energy Gun 19 | . 20 21 13 Ballistic Gun 4 | . 7 1 . Launcher 3 | . . 9 3 Peak Build Rating 20 | 6 7 14 20 Average Rating 8 | 3 6 11 11 On Entrance 6 | . 6 7 14 Avg Prop Armor Cover (%) . | . . . . Naked Turns . | . . . . Heaviest Build 29 | 13 19 28 29 Greatest Support 20 | 20 20 20 20 Greatest Overweight (x) 8 | 3 . 1 8 Average Overweight (x) . | . . . 1 Largest Inventory Capacity 10 | 8 10 10 10 Average Capacity 9 | 7 9 10 10 Most Carried 9 | 3 9 9 8 Average Carried 5 | 1 4 6 4 Final Capacity 10 | 8 10 10 10 Final Carried 9 | 1 9 9 2 Class Distribution -------------------- 31% | Mutant 31% | Scavenger-Mutant 21% | Scavenger-Skirmisher 16% | Scavenger-Tank Dominant Class ---------------- Scavenger-Mutant | -10/Materials Scavenger-Tank | -9/Materials Mutant | -8/Materials Resources | -11 -10 -9 -8 ----------- Run | Yrd Mat Mat Mat Matter Collected 667 | 159 242 214 52 Remotely . | . . . . Salvage Created 1178 | . 515 556 107 Parts 75 | . 33 39 3 Haulers Intercepted . | . . . . Recyclers Shooed . | . . . . Parts Field Recycled . | . . . . Retrieved Matter . | . . . . Parts Self-Destructed . | . . . . Prevented . | . . . . Parts Restored . | . . . . Kills | -11 -10 -9 -8 ------- Run | Yrd Mat Mat Mat Combat Hostiles Destroyed 29 | . 13 13 3 Melee 1 | . . . 1 Guns 23 | . 13 9 1 AOE 4 | . . 4 . Classes Destroyed 7 | . 3 4 . Builder 1 | . . 1 . Tunneler 1 | . . 1 . Operator 1 | . . 1 . Watcher 3 | . 1 2 . Swarmer 4 | . 3 . 1 Grunt 21 | . 10 10 1 Sentry 4 | . . 3 1 Best Kill Streak 3 | . 3 3 2 Combat Bots Only 3 | . 3 3 2 Max Kills in Single Turn 2 | . 1 2 1 Gunslinging . | . . . . Exploded 1 | . . 1 . Melee 1 | . . . 1 Uniques/NPCs Destroyed . | . . . . Combat | -11 -10 -9 -8 -------- Run | Yrd Mat Mat Mat Hostile Shots Fired 331 | . 75 72 184 Missed 101 | . 26 25 50 Hits 230 | . 49 47 134 Melee 3 | . . 3 . Projectile 227 | . 49 44 134 Critical Strikes 9 | . 1 3 5 Actively Blocked 1 | . 1 . . Damage Taken 2925 | . 583 794 1548 Core 791 | . 122 113 556 Absorbed by Shields . | . . . . Redirected to Shielding 51 | . 51 . . Core Remaining (%) 74 | 100 51 71 . Volleys Fired 84 | . 45 32 7 Largest 4 | . 2 3 4 Hottest 229 | . 80 136 229 Shots Fired 194 | . 86 82 26 Gun 177 | . 86 65 26 Cannon . | . . . . Launcher 17 | . . 17 . Special . | . . . . Kinetic 29 | . 26 3 . Thermal 113 | . 45 42 26 Explosive 17 | . . 17 . Electromagnetic 35 | . 15 20 . Robot Hit Streak 16 | . 16 12 7 Robot Miss Streak 7 | . 3 7 2 Penetration Max . | . . . . Secondary Targets 1 | . . 1 . Max Gunslinging Chain 1 | . . 1 . Shots Hit Robots 130 | . 61 49 20 Core Hits 73 | . 28 40 5 Critical Kills . | . . . . Critical Parts Destroyed 1 | . . . 1 Critical Strikes 4 | . . 3 1 Burn 3 | . . 3 . Smash 1 | . . . 1 Melee Attacks 7 | . . . 7 Impact 7 | . . . 7 Slashing . | . . . . Piercing . | . . . . Sneak Attacks . | . . . . Combat Hostiles . | . . . . Follow-up Attacks . | . . . . Damage Inflicted 2179 | . 674 1168 337 Guns 1446 | . 634 553 259 Cannons . | . . . . Explosions 655 | . 40 615 . Melee 75 | . . . 75 Ramming 3 | . . . 3 Kinetic 177 | . 153 24 . Thermal 980 | . 372 349 259 Explosive 615 | . . 615 . Electromagnetic 329 | . 149 180 . Impact 75 | . . . 75 Slashing . | . . . . Piercing . | . . . . Highest Corruption 3 | . 3 . . Average Corruption 2 | . 2 . . Corruption Purged . | . . . . Corruption Blocked . | . . . . Overload Shots . | . . . . Overflow Damage 52 | . 20 . 32 Projectiles . | . . . . Explosions 20 | . 20 . . Melee 32 | . . . 32 Knockbacks . | . . . . Impact . | . . . . Kinetic . | . . . . Secondary . | . . . . Self-Inflicted Damage 63 | . . 63 . Shots 4 | . . 4 . Rammed . | . . . . Targets Rammed 2 | . . 1 1 Kicked 2 | . . 1 1 Crushed . | . . . . Highest Temperature 858 | . 108 264 858 Average Temperature 128 | . 39 94 415 Received Heat Transfer 1182 | . 303 339 540 Effects 26 | . . 3 23 Shutdowns 6 | . . . 6 Energy Bleed 5 | . . . 5 Interference 4 | . . 3 1 Matter Decay 4 | . . . 4 Short Circuit 2 | . . . 2 Damage (minor) 5 | . . . 5 Siege Activations . | . . . . Martial Activations . | . . . . Shielding Activations . | . . . . Robots Disrupted . | . . . . Combat Hostiles . | . . . . Robots Corrupted . | . . . . Combat Hostiles . | . . . . Parts Fried 1 | . . . 1 Impact Corruptions 2 | . . . 2 Robots Melted 1 | . . . 1 Combat Hostiles 1 | . . . 1 Parts Melted 3 | . . 2 1 Heat Transferred 2435 | . 800 1066 569 Parts Sabotaged . | . . . . Parts Stolen . | . . . . Parts Stripped . | . . . . Power Chain Reactions 1 | . 1 . . Alert | -11 -10 -9 -8 ------- Run | Yrd Mat Mat Mat Maximum Alert Level . | . . . . Low Security (%) 100 | 100 100 100 100 Level 1 . | . . . . Level 2 . | . . . . Level 3 . | . . . . Level 4 . | . . . . Level 5 . | . . . . High Security . | . . . . Max Security . | . . . . Peak Influence 181 | . 140 181 69 Initial 69 | . . 33 69 Average 75 | . 77 98 23 Influence Increases 1061 | . 441 494 126 Destroy 0b10 Robot/C 580 | . 260 260 60 Destroy 0b10 Robot/NC 30 | . 5 25 . Destroy Leader 156 | . 62 74 20 Successful Hack 4 | . 4 . . Disable Machine 45 | . 15 30 . Destroy Structure 111 | . 5 105 1 Lose Combat Pursuer 135 | . 90 . 45 Influence Decreases 1016 | . 362 408 246 Entered New Map 142 | . . 46 96 Time Decay 704 | . 342 302 60 Lost Part 170 | . 20 60 90 Squads Dispatched 5 | . 3 2 . Investigation 2 | . 2 . . Extermination . | . . . . Reinforcement 3 | . 1 2 . Assault . | . . . . Garrison . | . . . . Intercept . | . . . . Searches Triggered . | . . . . Construction Impeded 2 | . . 2 . Haulers Reinforced . | . . . . Active Scanning Responses . | . . . . Cargo Convoy Interrupts . | . . . . Stealth | -11 -10 -9 -8 --------- Run | Yrd Mat Mat Mat Distress Signals 3 | . 1 1 1 Communications Jammed . | . . . . Distress Signals . | . . . . Times Spotted 57 | . 22 20 15 Peak Tracking Total 10 | . 6 4 10 Tactical Retreats 6 | . 5 . 1 Traps | -11 -10 -9 -8 ------- Run | Yrd Mat Mat Mat Traps Triggered 4 | . 4 . . Indirectly . | . . . . Trap Hack Attempts . | . . . . Triggered . | . . . . Disarmed . | . . . . Reprogrammed . | . . . . Reused . | . . . . Traps Extracted . | . . . . Installed . | . . . . Triggered . | . . . . Machines | -11 -10 -9 -8 ---------- Run | Yrd Mat Mat Mat Machines Disabled 3 | . 1 2 . Max in Single Turn 1 | . 1 1 . Machines Repaired . | . . . . Machines Dismantled . | . . . . Machines Sabotaged . | . . . . Overloaded Fab Kills . | . . . . Hacking | -11 -10 -9 -8 --------- Run | Yrd Mat Mat Mat Machines Accessed 4 | . 3 1 . Terminals 4 | . 3 1 . Fabricators . | . . . . Repair Stations . | . . . . Recycling Units . | . . . . Scanalyzers . | . . . . Garrison Access . | . . . . Total Hacks 12 | . 10 2 . Successful 10 | . 8 2 . Failed 2 | . 2 . . Catastrophic . | . . . . Database Lockouts . | . . . . Manual . | . . . . Terminals 12 | . 10 2 . Fabricators . | . . . . Repair Stations . | . . . . Recycling Units . | . . . . Scanalyzers . | . . . . Garrison Access . | . . . . Terminal Hacks 10 | . 8 2 . Record 9 | . 8 1 . Alert Level 1 | . . 1 . Fabricator Hacks . | . . . . Repair Station Hacks . | . . . . Recycling Unit Hacks . | . . . . Scanalyzer . | . . . . Garrison Access Hacks . | . . . . Unauthorized Hacks . | . . . . Terminals . | . . . . Fabricators . | . . . . Repair Stations . | . . . . Recycling Units . | . . . . Scanalyzers . | . . . . Garrison Access . | . . . . Data Cores Recovered 1 | . . 1 . Used . | . . . . Hacking Detections 3 | . 3 . . Full Trace Events 2 | . 2 . . Feedback Events . | . . . . Feedback Blocked . | . . . . Robot Schematics Acquired . | . . . . Robots Built . | . . . . Authchips . | . . . . Time . | . . . . Total Robot Build Rating . | . . . . Part Schematics Acquired . | . . . . Parts Built . | . . . . Authchips . | . . . . Time . | . . . . Total Part Build Rating . | . . . . Part Studies Acquired . | . . . . Parts Repaired . | . . . . Time . | . . . . Parts Recycled . | . . . . Recycled Matter . | . . . . Retrieved Matter . | . . . . Retrieved Components . | . . . . Parts Scanalyzed . | . . . . Part Schematics Acquired . | . . . . Parts Damaged . | . . . . Bothacking | -11 -10 -9 -8 ------------ Run | Yrd Mat Mat Mat Used RIF Installer . | . . . . Robots Hacked . | . . . . Non-combat . | . . . . Combat . | . . . . Robot Hacks Applied . | . . . . Relay Couplers Released . | . . . . Fabnet Peak Effective % . | . . . . Robots Rewired . | . . . . Allies Hacked . | . . . . Hacks Repelled . | . . . . Allies | -11 -10 -9 -8 -------- Run | Yrd Mat Mat Mat Total Allies . | . . . . Largest Group . | . . . . Highest-Rated Group . | . . . . Highest-Rated Ally . | . . . . Total Orders . | . . . . Ally Attacks . | . . . . Total Damage . | . . . . Kills . | . . . . Allies Corrupted . | . . . . Allies Melted . | . . . . Intel | -11 -10 -9 -8 ------- Run | Yrd Mat Mat Mat Active Infowar (turns) 783 | . . 661 122 Optics 777 | . . 659 118 Terrain 270 | . . 150 120 Robot Analysis Total . | . . . . Derelict Logs Recovered . | . . . . Drone Launches . | . . . . Drone Recoveries . | . . . . Exploration | -11 -10 -9 -8 ------------- Run | Yrd Mat Mat Mat Turns Passed 1893 | 51 932 673 237 Spaces Moved 954 | 32 511 307 104 Core 22 | 12 . . 10 Treads . | . . . . Legs 932 | 20 511 307 94 Wheels . | . . . . Hover . | . . . . Flight . | . . . . Fastest Speed 50 | 50 120 120 120 Average Speed 144 | 121 120 177 178 Slowest Speed 450 | 200 120 190 450 Overloaded Moves . | . . . . Propulsion Burnouts . | . . . . Robots Hopped . | . . . . Potential Cave-ins . | . . . . Cave-ins Triggered . | . . . . Exploration Rate (%) 27 | 3 54 29 23 Regions Visited 3 Branch Regions . Pre-discovered Areas . | . . . . Known Exits Taken . | . . . . Unknown Exits Taken 3 | 1 1 1 . Scrap Searched . | . . . . Spaces Dug . | . . . . Terrain Destroyed 116 | . 4 112 . Melee . | . . . . Projectile . | . . . . AOE 116 | . 4 112 . Terrain Rammed . | . . . . Walls Destroyed . | . . . . Machines Disabled . | . . . . Actions | -11 -10 -9 -8 --------- Run | Yrd Mat Mat Mat Total 1288 | 44 749 368 127 Wait 167 | . 162 5 . Move 951 | 31 510 306 104 Hop . | . . . . Pick Up 24 | 7 10 7 . Fast Attach 4 | . 1 2 1 Attach 22 | 6 2 7 7 Detach . | . . . . Swap 13 | . 9 4 . Drop 14 | . 10 4 . Fire 84 | . 45 32 7 Melee 7 | . . . 7 Ram . | . . . . Kick 2 | . . 1 1 Crush . | . . . . Escape Stasis . | . . . . Rewire . | . . . . Trap . | . . . . Miscellaneous . | . . . . Route ------- -11/Scrapyard -10/Materials -9/Materials -8/Materials History --------- Turn | Location | Event 15 | -11/Scrapyard | Discovered new exit (range 15) 52 | -11/Scrapyard | Entered Materials 313 | -10/Materials | Build established: Mutant 721 | -10/Materials | Discovered new exit (range 5) 784 | -10/Materials | Build established: Scavenger-Mutant 984 | -10/Materials | Entered another Materials area 984 | -9/Materials | Evolved 2 slots: Utility x1, Weapon x1 1366 | -9/Materials | Build established: Scavenger-Tank 1366 | -9/Materials | Discovered new exit (range 9) 1657 | -9/Materials | Entered another Materials area 1657 | -8/Materials | Evolved 2 slots: Power x1, Weapon x1 1825 | -8/Materials | Lost 12 parts (3p3n1u5w) 1877 | -8/Materials | Core integrity fell below 50% 1889 | -8/Materials | Core integrity fell below 20% 1894 | -8/Materials | Destroyed by G-47 Trooper with Particle Gun Last Messages --------------- 01871_ K-01 Serf cleans the Material Compactor. 01878_ Slug penetrates Wall. 01878_ Material Compactor disabled. 01878_ S-10 Pest destroyed. 01882_ K-01 Serf collects debris. 01883_ Slug penetrates Wall. 01884_ Destroyed Flight Unit. 01884_ S-10 Pest system corrupted by crushing effect. 01886_ Slug penetrates Wall. 01886_ K-01 Serf collects debris. 01886_ S-10 Pest IFF system glitched. 01887_ S-10 Pest suffers critical hit (Smash). 01887_ Destroyed Flight Unit. 01887_ S-10 Pest system corrupted by crushing effect. 01887_ Lgt. Assault Rifle fried. 01887_ S-10 Pest destroyed. 01890_ K-01 Serf collects debris. Map ----- +----------------------------------------------------+ | ????????? #???#????????# #???? | | ?????????? ??????# ######## #???? | | ?????????????????# #???? | | ??????????????###### #???? | | ??????????????# #???? | | ??????????????# #???? | | ??????????????# " #???? | | ??????????????# #???? | | ??????????????# #######/####+#???? | | ??????????????## ???????# """ #???? | | ???????????????# ????????# """ #???? | | ??????????????????????????# """ #???? | | ??????????????????????????#! #???? | | ??????????????????????????# ]#???? | | ??????????????????????????# #???? | | ??????????????????????????###+####???? | | ????????????????????????????# #??????? | | ????????????????????????????# #??????? | | ???????????????# ########## #??????? | | ???????????????# #??????? | | ???????????????# %####??????? | | ???????????????# ##/#######???? | | ???????????????###/## ?#gss #???? | | ????????????????????# ??# k""" #???? | | ????????????????????????# """" #???? | | ????????????????????????#@ """"" #???? | | ??????????????????????? g% """"" ????? | | ????????????????????? # """ ?????? | | ????????????????????# # ?????? | | ????????????????????# ?#= ]????? | | ????????????????????# ??# ! #???? | | ????????????????????#???##########???? | | ?????????????????????????????????????? | | ?????????????????????????????????????? | | ?????????????????????????????????????? | | ?????????????????????????????????????? | | ?????????????????????????????????????? | | ?????????????????????????????????????? | | ?????????????????????????????????????? | | ?????????????????????????????????????? | | ?????????????????????????????????????? | | ?????????????????????????????????????? | | ?????????????????????????????????????? | | ?????????????????????????????????????? | | ?????????????????????????????????????? | | ?????????????????????????????????????? | | ?????????????????????????????????????? | | ?????????????????????????????????????? | | ?????????????????????????????????????? | | ?????????????????????????????????????? | +----------------------------------------------------+ Best States ------------- Heat Dissipation 31 Energy Generation 15 Energy Capacity 275 Matter Stores 300 Matter Capacity 300 Sight Range 18 Terrain Scan Range 16 Terrain Scan Density 10 Armor Coverage 150 Weapon Shielding 33 Evasion (%) 55 Item Schematics ----------------- None Robot Schematics ------------------ None Fabricated ------------ Nothing Repaired ---------- Nothing Studied --------- None Alien Tech Used ----------------- None Achievements -------------- Well Done Challenges ------------ None Game ------ Seed StasisPlexusManipulator Manual? 0 Play Time 00:25:09 Cumulative 7.1 hours Start 2026.06.23 @ 08:06:19 End 2026.06.23 @ 08:39:39 Sessions 1 Manual Loads 0 Difficulty Rogue Special Mode None Game No. 14 Rogue 14 Adventurer 0 Explorer 0 Win Type - Total 0 Types 0/0/0/0/0/0/0/0/0/0 Lore% 3 Gallery% 9 Achievement% 10 Wizard Run 0 Options --------- Layout 1 ASCII 0 Keyboard 0 Movement Mouse Keybinds 0 Fullscreen 1 Font 24/Smallcaps Map View 50x35 Zoom Use 0% Tactical HUD 1 Map Filters NONE Filters NONE Steam 1 RUN: f947e12c-2768-4e18-9f49-29078d5d4517